[Event "European Women-ch 2023"]
[Site "Petrovac"]
[Date "2023.03.20"]
[Round "3.3"]
[White "Vega Gutierrez, Sabrina"]
[Black "Socko, Monika"]
[Result "1/2-1/2"]
[ECO "C02"]
[WhiteElo "2361"]
[BlackElo "2432"]
[Annotator "TA"]
[PlyCount "107"]
[EventDate "2023.03.15"]
[EventType "swiss"]
[EventCountry "MNE"]
[SourceTitle "playchess.com"]
[Source "ChessBase"]
[SourceQuality "1"]
[TimeControl "40/5400+30:1800+30"]

{[%evp 13,107,0,23,11,0,10,23,18,46,39,37,46,41,40,39,38,47,49,58,60,77,0,0,0,0,0,0,0,0,0,0,0,42,26,45,21,32,30,40,34,52,40,53,57,61,59,72,54,78,71,75,84,80,67,67,67,63,52,59,59,64,64,80,73,73,52,73,73,73,73,80,80,80,73,80,66,80,80,80,80,80,54,54,54,54,54,54,50,50,50,50,50,50,50,50,50]} 1. e4 {[%emt 0:00:05]} e6 {[%emt 0:00:03]} 2. d4 {[%emt 0:00:06]} d5 {[%emt 0:00:04]} 3. e5 {[%emt 0:00:09]} c5 {[%emt 0:00:04]} 4. c3 {[%emt 0:00:08]} Nc6 {[%emt 0:00:05]} 5. Nf3 {[%emt 0:00:08]} Bd7 {[%emt 0:00:04]} 6. Be2 {[%emt 0:01:40]} Nge7 {[%emt 0:00:03]} 7. O-O {[%emt 0:00:35]} Ng6 $1 {[%emt 0:00:40] 7...Ng6 scores better than 7...Nf5.} 8. Na3 {[%emt 0:00:34] C02: French: Advance Variation.} cxd4 {[%emt 0:06:17]} 9. cxd4 {[%emt 0:00:08]} f6 {[%emt 0:06:32][%cal Rf6e5]} 10. Bd3 {[%emt 0:03:20] [#] White has an edge.} Be7 $146 {[%emt 0:06:47]} ({Predecessor:} 10... Rc8 11. Re1 Be7 12. Nc2 f5 13. Bxf5 exf5 14. e6 Bxe6 15. Rxe6 O-O 16. Re1 Bf6 {½-½ Schoeneich,M-Berndt,M BL2-Nord 9293 1992 [8]}) 11. exf6 {[%emt 0:24:33]} Bxf6 {[%emt 0:04:45]} 12. Bxg6+ {[%emt 0:02:55]} hxg6 {[%emt 0:00:03]} 13. Qd3 {[%emt 0:00:51]} O-O {[%emt 0:08:27]} 14. Bd2 {[%emt 0:10:49]} Rc8 {[%emt 0:08:49]} 15. Rfe1 {[%emt 0:03:57]} Qe7 {[%emt 0:07:35]} 16. Nc2 {[%emt 0:00:55]} Qf7 {[%emt 0:05:14][%cal Oe6e5]} 17. Ne3 {[%emt 0:06:25] White is more active.} ({White should play} 17. h3 $16) 17... e5 $11 {[%emt 0:12:59]} 18. dxe5 {[%emt 0:00:19]} Nxe5 {[%emt 0:00:14]} 19. Nxe5 {[%emt 0:03:07]} Bxe5 {[%emt 0:00:04]} 20. Qxd5 {[%emt 0:06:53]} Bxb2 {[%emt 0:02:11] [#] Strongly threatening ...Be6. This pair of bishops is nice.} ({Don't take} 20... Qxd5 21. Nxd5 Bxb2 22. Ne7+ Kh7 23. Nxc8 Bxa1 24. Nb6 $14) 21. Qxf7+ {[%emt 0:12:01]} Rxf7 {[%emt 0:00:05]} ({Much less strong is} 21... Kxf7 22. Rab1 Bd4 23. Rxb7 $16) 22. Rab1 {[%emt 0:00:06]} Ba3 {[%emt 0:04:13]} (22... Bd4 $5) 23. Rxb7 {[%emt 0:01:06]} Be6 {[%emt 0:00:31]} 24. Rxf7 {[%emt 0:03:18]} Kxf7 {[%emt 0:00:47]} 25. Rb1 {[%emt 0:01:35]} Rc7 {[%emt 0:00:20] Wards off Rb7} 26. Kf1 {[%emt 0:02:15]} Re7 {[%emt 0:06:14]} 27. Rb5 {[%emt 0:00:44]} Bd6 {[%emt 0:01:31]} 28. a4 {[%emt 0:01:54][%cal Ba2a4,Ba4a5][%mdl 32]} Bf4 {[%emt 0:05:34][%cal Of4e3]} 29. Ke1 {[%emt 0:01:41]} Rd7 {[%emt 0:05:32]} 30. a5 {[%emt 0:07:13]} Re7 {[%emt 0:03:15]} 31. g3 {[%emt 0:02:51]} Bc7 {[%emt 0:03:20]} 32. Bb4 {[%emt 0:01:28]} Rd7 {[%emt 0:00:01]} 33. Rb7 {[%emt 0:00:27]} Be5 {[%emt 0:00:38]} 34. Rxd7+ {[%emt 0:02:20]} Bxd7 $14 {[%emt 0:00:01][%mdl 4096] Endgame KBB-KBN} 35. Ke2 {[%emt 0:00:51]} Bb5+ {[%emt 0:01:07]} 36. Kd2 {[%emt 0:00:11]} Bd4 {[%emt 0:00:19]} 37. Bc3 {[%emt 0:00:48]} Bxe3+ {[%emt 0:00:57]} 38. fxe3 {[%emt 0:00:31] KB-KB} a6 {[%emt 0:00:19]} 39. h4 {[%emt 0:00:09]} Bc4 {[%emt 0:00:52]} 40. e4 {[%emt 0:00:00]} Bb5 {[%emt 0:00:00]} 41. Ke3 {[%emt 0:00:17]} Bc6 {[%emt 0:01:21]} 42. Kf4 {[%emt 0:04:46]} Bb7 {[%emt 0:03:19]} 43. Ke5 {[%emt 0:00:03]} Bc6 {[%emt 0:00:20]} 44. g4 {[%emt 0:01:59][%cal Bg3g4,Bg4g5][%mdl 32]} Bb7 {[%emt 0:01:11]} 45. g5 {[%emt 0:07:54]} Bc6 {[%emt 0:00:49]} 46. Kd4 {[%emt 0:00:02]} Bb7 {[%emt 0:00:18]} 47. e5 {[%emt 0:00:13]} Bf3 {[%emt 0:05:04] White is slightly better.} 48. Kc5 {[%emt 0:00:03]} Ke6 {[%emt 0:00:19]} 49. Kb6 {[%emt 0:00:13]} Be2 {[%emt 0:00:03]} 50. Kc7 {[%emt 0:00:22]} Bb5 {[%emt 0:00:04]} 51. Kd8 {[%emt 0:00:31]} Ba4 {[%emt 0:00:36]} 52. Bb4 {[%emt 0:01:18]} Kxe5 {[%emt 0:00:38]} 53. Ke7 {[%emt 0:00:10]} Bd1 {[%emt 0:01:34]} 54. Kf7 {[%emt 0:00:27][%csl LRg6,LRg7] Weighted Error Value: White=0.06 (flawless) /Black=0.07 (flawless)} 1/2-1/2

[Event "European Women-ch 2023"]
[Site "Petrovac"]
[Date "2023.03.20"]
[Round "3.3"]
[White "Rudzinska, Michalina"]
[Black "Shuqja, Klean"]
[Result "1-0"]
[ECO "B12"]
[WhiteElo "2212"]
[BlackElo "1884"]
[Annotator "TA"]
[PlyCount "77"]
[EventDate "2023.03.15"]
[EventType "swiss"]
[EventCountry "MNE"]
[SourceTitle "playchess.com"]
[Source "ChessBase"]
[SourceQuality "1"]
[TimeControl "40/5400+30:1800+30"]

{[%evp 11,77,0,62,64,217,79,87,83,100,102,106,35,31,31,37,22,116,110,217,106,104,43,64,36,35,16,34,29,33,12,32,0,90,104,83,97,93,88,89,83,82,82,54,41,152,189,165,158,134,52,123,63,57,71,80,15,184,154,162,42,154,110,29973,29974,29975,29977,29982,29983]} 1. e4 {[%emt 0:00:03]} c6 {[%emt 0:02:43]} 2. d4 {[%emt 0:00:10]} d5 {[%emt 0:00:06]} 3. f3 {[%emt 0:00:13]} dxe4 {[%emt 0:06:55]} 4. fxe4 {[%emt 0:00:36]} e5 {[%emt 0:02:11]} 5. Nf3 {[%emt 0:00:14]} exd4 {[%emt 0:01:06]} 6. Bc4 {[%emt 0:00:43]} Bb4+ {[%emt 0:21:01]} (6... Nf6 $11) 7. c3 $14 {[%emt 0:03:44] B12: Caro-Kann: Advance Variation.} dxc3 {[%emt 0:06:16]} (7... Ba5 $1 $14) 8. Qxd8+ {[%emt 0:10:16]} (8. Bxf7+ $1 $18 {is the precise move to win.} Ke7 9. Qxd8+ (9. Nxc3 $2 {perishes.} Qxd1+ 10. Kxd1 Kxf7 $19) 9... Kxd8 10. Nxc3 (10. bxc3 Be7 $16)) 8... Kxd8 $16 {[%emt 0:00:01]} 9. bxc3 {[%emt 0:00:11] White is better.} Bd6 {[%emt 0:03:05]} 10. e5 {[%emt 0:02:23] [#]} ({Don't play} 10. Bxf7 Nd7 $11) 10... Bc5 $146 {[%emt 0:06:44]} ({Predecessor:} 10... Bc7 11. O-O Nd7 12. e6 fxe6 13. Ng5 Bb6+ 14. Kh1 Ne5 15. Bf4 Nxc4 16. Nf7+ Ke7 17. Nxh8 {0-1 Darowicki,M (1942)-Nowacki,K (1608) Kowalewo Pomorskie op-B 2008 (2.22)}) 11. Bxf7 {[%emt 0:01:42]} (11. Nbd2 $1 $16 {[%cal Rd2e4]}) 11... Nh6 $14 {[%emt 0:03:43]} 12. Bxh6 {[%emt 0:03:42]} gxh6 {[%emt 0:00:03]} 13. Nbd2 {[%emt 0:01:53] next e6 is good for White.} Bf5 {[%emt 0:01:43]} (13... Na6 $11 {remains equal.}) 14. Nb3 $16 {[%emt 0:03:22]} Bb6 {[%emt 0:04:33]} (14... Na6 $16 {might work better.}) 15. Nbd4 {[%emt 0:03:58]} (15. Nh4 $1 $18 {[%cal Rh4f5] is more deadly.} Be4 16. O-O-O+ Ke7 17. Rhe1 (17. Rhf1 Na6 $16)) 15... Bg6 {[%emt 0:05:10]} 16. Bxg6 {[%emt 0:12:21]} ({White should try} 16. e6 $1 $16) 16... hxg6 $14 {[%emt 0:04:28]} 17. O-O-O {[%emt 0:00:23]} Ke7 $1 {[%emt 0:03:12]} 18. h4 {[%emt 0:08:39]} (18. Rhf1 {keeps more tension.} Rg8 19. e6 Na6 20. Ne5) 18... Nd7 {[%emt 0:05:05]} 19. h5 {[%emt 0:00:40]} Bxd4 {[%emt 0:01:55]} 20. Rxd4 {[%emt 0:03:54]} (20. Nxd4 $5 {[%cal Rh5g6]} c5 21. Nc2 $14) 20... g5 {[%emt 0:01:31]} 21. Re1 {[%emt 0:04:45]} (21. Rhd1 $5 {[%cal Rd4d7]} Nc5 22. Rd6 $11) 21... Rad8 {[%emt 0:03:47]} (21... Nc5 $11) 22. e6 $1 $16 {[%emt 0:03:42][%cal Be5e6,Be6e7][%mdl 32] White has more active pieces.} Nc5 {[%emt 0:04:59]} 23. Ne5 $1 {[%emt 0:00:30]} Rhe8 {[%emt 0:01:49]} 24. Ng6+ $1 {[%emt 0:05:49]} Kf6 {[%emt 0:00:14] And now ...Rxd4 would win.} 25. Rxd8 {[%emt 0:00:48]} Rxd8 {[%emt 0:00:19][%mdl 4096] Endgame KRN-KRN} 26. e7 {[%emt 0:00:22]} Re8 {[%emt 0:00:27] ...Nd3+ is the strong threat.} 27. Kc2 {[%emt 0:10:53] Inhibits Nd3.} Na4 {[%emt 0:05:52]} ({Black should play} 27... Ne6 $14) 28. Rf1+ $1 {[%emt 0:02:23]} Ke6 {[%emt 0:00:20]} 29. Rf8 {[%emt 0:03:37] Wards off Nc5} Kd7 {[%emt 0:00:07]} 30. Rf7 {[%emt 0:00:14]} (30. Kd3 $16) 30... Nb6 {[%emt 0:03:19]} (30... Ke6 $14 31. Rf8 Kd7) 31. Rh7 {[%emt 0:00:34]} (31. Kd3 $1 $16) 31... Nd5 $14 {[%emt 0:00:28][%cal Rd5e7]} 32. Rxh6 {[%emt 0:00:14]} Ne3+ {[%emt 0:01:23] [#]} 33. Kd3 {[%emt 0:00:07]} (33. Kd2 $1 $16 {[%cal Rd2e3]} Ng4 34. Rh7) 33... Nxg2 {[%emt 0:00:02]} (33... Ng4 $1 $11 34. Rh7 Nf6) 34. Ke4 $18 {[%emt 0:01:45]} Nh4 {[%emt 0:01:22] [#]} 35. Rh7 {[%emt 0:01:33]} (35. Ke5 $1 $18 {[%cal Re5f6]} Nxg6+ 36. hxg6 Kxe7 37. Rh7+ Kf8+ 38. Kf6) 35... Nxg6 {[%emt 0:01:24]} (35... Ke6 $14) 36. hxg6 $16 {[%emt 0:00:05][%cal Bh5g6,Bg6g7][%mdl 32]} Ke6 {[%emt 0:00:36][%mdl 8192]} (36... g4 $16) 37. g7 {[%emt 0:03:32] White mates.} Kf7 {[%emt 0:00:32]} 38. Kf5 {[%emt 0:00:38]} g4 {[%emt 0:00:26]} 39. Rh8 {[%emt 0:00:26] Weighted Error Value: White=0.27 (precise) /Black=0.46} 1-0

[Event "European Women-ch 2023"]
[Site "Petrovac"]
[Date "2023.03.20"]
[Round "3.4"]
[White "Narva, Mai"]
[Black "Abdulla, Khayala"]
[Result "1/2-1/2"]
[ECO "C76"]
[WhiteElo "2389"]
[BlackElo "2221"]
[Annotator "TA"]
[PlyCount "139"]
[EventDate "2023.03.15"]
[EventType "swiss"]
[EventCountry "MNE"]
[SourceTitle "playchess.com"]
[Source "ChessBase"]
[SourceQuality "1"]
[TimeControl "40/5400+30:1800+30"]

{[%evp 14,139,32,23,22,22,23,22,36,31,31,33,34,29,46,12,43,27,26,7,29,9,29,-10,-12,-10,-8,-8,-2,-12,0,0,35,12,37,-33,-36,-37,-29,-31,-20,-289,0,0,-4,-6,0,0,24,0,0,-50,-46,-140,-126,-101,-88,-276,-208,-225,0,0,979,941,793,22,17,-123,-102,-135,-140,-339,-327,-309,-270,-445,-422,-522,-522,-510,-505,-459,-394,-270,-260,-516,-131,-33,0,-203,-164,-161,-34,-34,-34,-514,-309,-305,0,-34,-34,-38,-40,-41,0,0,0,0,0,0,0,0,0,0,0,0,0,0,0,0,0,0,0,0,0,0,0,0]} 1. e4 {[%emt 0:00:04]} e5 {[%emt 0:00:29]} 2. Nf3 {[%emt 0:00:15]} Nc6 {[%emt 0:00:06]} 3. Bb5 {[%emt 0:00:10]} a6 {[%emt 0:00:06]} 4. Ba4 {[%emt 0:00:08]} d6 {[%emt 0:00:33]} 5. c3 {[%emt 0:12:11]} Bd7 {[%emt 0:00:23]} 6. O-O {[%emt 0:00:24]} g6 {[%emt 0:00:35]} 7. d4 {[%emt 0:00:30]} Bg7 {[%emt 0:00:10]} 8. h3 {[%emt 0:00:47]} Nf6 {[%emt 0:00:51][%cal Bg8f6,Bf6h5,Bh5f4][%mdl 32] C76: Ruy Lopez: Deferred Steinitz: 5 c3 Bd7 6 d4 g6.} 9. Re1 {[%emt 0:00:38]} O-O {[%emt 0:01:10]} 10. Bc2 {[%emt 0:00:24]} Re8 {[%emt 0:02:38]} 11. Nbd2 {[%emt 0:02:59]} a5 {[%emt 0:02:05] [#]} 12. d5 $146 {[%emt 0:16:59]} ({Predecessor:} 12. Nf1 a4 13. Ng3 b5 14. Bg5 h6 15. Be3 Qe7 16. Qd2 Kh7 17. Rad1 Na5 18. b3 axb3 19. axb3 {1-0 Sethuraman,S (2642)-Gupta,A (2601) IND-ch 59th New Delhi 2022 (6)}) 12... Ne7 {[%emt 0:02:24]} 13. c4 {[%emt 0:03:55]} Nh5 {[%emt 0:16:57]} 14. Nf1 {[%emt 0:05:43]} h6 {[%emt 0:03:03]} 15. Ne3 {[%emt 0:07:19]} Nf4 {[%emt 0:04:52]} 16. h4 {[%emt 0:04:15]} b5 {[%emt 0:10:07]} 17. g3 {[%emt 0:06:25]} Nh5 {[%emt 0:01:33]} 18. Qe2 {[%emt 0:01:26]} bxc4 {[%emt 0:04:25]} 19. Bd2 {[%emt 0:04:48]} c6 {[%emt 0:06:04]} 20. dxc6 {[%emt 0:10:30]} (20. Qxc4 cxd5 21. Nxd5 Nxd5 22. Qxd5 Nf6 $17) 20... Nxc6 {[%emt 0:01:14]} 21. Qxc4 {[%emt 0:04:17]} Rc8 {[%emt 0:01:57]} 22. Qd3 {[%emt 0:04:14]} Be6 {[%emt 0:06:55]} 23. Bc3 {[%emt 0:01:24]} Qf6 {[%emt 0:06:32]} 24. Nd5 {[%emt 0:03:48]} (24. Nd2 $14) 24... Bxd5 $15 {[%emt 0:00:51]} 25. exd5 {[%emt 0:00:07]} Nb4 {[%emt 0:02:18]} 26. Bxb4 {[%emt 0:00:18]} axb4 {[%emt 0:00:01]} 27. Nd2 {[%emt 0:04:09][%mdl 8192]} (27. Bd1 $11 {and White has nothing to worry.}) 27... Qd8 $2 {[%emt 0:02:17]} ({Black should try} 27... e4 $1 $19 {[%cal Re4d3]} 28. Nxe4 Qxb2) 28. Bd1 $11 {[%emt 0:02:00]} Nf6 {[%emt 0:03:40]} 29. Ba4 {[%emt 0:02:51]} Rf8 {[%emt 0:02:04]} 30. Rac1 {[%emt 0:00:30]} Ng4 {[%emt 0:07:44] Black is weak on the light squares} 31. Rc6 {[%emt 0:01:45]} f5 {[%emt 0:02:34] Dodges Ne4} (31... Qf6 $2 32. Ne4 Qd8 33. Rxd6 $18) 32. Qe2 {[%emt 0:00:34]} (32. Nc4 $11) 32... h5 $15 {[%emt 0:03:22]} 33. Nc4 {[%emt 0:00:34]} ({White should play} 33. Rec1 $15 Ra8 34. Bc2) 33... Rxc6 {[%emt 0:00:57]} 34. dxc6 {[%emt 0:00:20]} (34. Bxc6 $2 f4 35. Rf1 (35. f3 $2 fxg3 36. Kg2 Nh2 $19) 35... Qe7 $19) 34... f4 $1 {[%emt 0:02:40] And now ...d5 would win.} 35. Qd3 {[%emt 0:00:44]} (35. Qd2 $17 e4 36. Bd1 (36. Rxe4 fxg3 37. fxg3 d5 $17)) 35... fxg3 {[%emt 0:01:56]} 36. fxg3 {[%emt 0:00:06]} Qf6 {[%emt 0:00:14]} (36... d5 $19 37. Ne3 e4 38. Qxd5+ Qxd5 39. Nxd5 Bd4+ 40. Kh1 Rf2 41. Nf6+ (41. Nxb4 $2 Rh2#) (41. Ne7+ Kh7 42. Kg1 Rd2+ {[%mdl 64] Discovered Attack}) 41... Bxf6 42. Rxe4 Be5 43. Bb3+ Kf8) 37. Rf1 $11 {[%emt 0:00:37] The board is on fire. Active counter play!} (37. Nxd6 $2 Qf2+ 38. Kh1 Qh2#) 37... Qe6 {[%emt 0:02:25][%mdl 8192]} (37... Qe7 $11 38. c7 (38. Nxd6 $2 Qa7+ 39. Kh1 Rxf1+ 40. Qxf1 Qxa4 $19) 38... Rxf1+ 39. Kxf1 Qf7+ 40. Ke2 Qxc7) 38. Rxf8+ $18 {[%emt 0:00:07]} (38. Qxd6 $2 {is the wrong capture.} Rxf1+ 39. Kxf1 Qxc4+ $19) 38... Bxf8 {[%emt 0:00:02]} 39. Bb3 $2 {[%emt 0:01:08]} (39. Bc2 $18 b3 40. axb3 (40. Bxb3 d5 $18)) 39... d5 $11 {[%emt 0:00:20] [#]} 40. Nxe5 {[%emt 0:00:00]} Bc5+ $17 {[%emt 0:00:00]} (40... Qxe5 $2 41. Qxd5+ Qxd5 42. Bxd5+ Kh7 43. c7 $18) (40... Nxe5 $2 41. Bxd5 Nxd3 42. Bxe6+ Kh7 43. c7 $18) 41. Kg2 {[%emt 0:01:27][%cal Oc6c7] Threatens to win with c7!} Ne3+ $40 {[%emt 0:04:42][%mdl 128] Black has strong attack.} (41... Qxe5 $2 42. Qxd5+ Qxd5+ 43. Bxd5+ Kg7 44. c7 Ne3+ 45. Kf3 Nxd5 46. c8=Q $18 (46. c8=R Be7 $11)) 42. Kh2 $2 {[%emt 0:03:08]} (42. Kf3 $17 {was necessary.} Qf6+ 43. Ke2 Qxe5 44. Qxg6+ Kf8 45. Qh6+ Ke8 46. Qg6+ Kd8 47. Qg5+ Qxg5 48. hxg5) 42... Qxe5 $19 {[%emt 0:02:00]} 43. Qxg6+ {[%emt 0:00:36]} Kf8 {[%emt 0:00:35]} 44. c7 $2 {[%emt 0:00:39]} (44. Qh6+ {was called for.} Ke8 45. Qg6+ Kd8 46. Qg5+ Qxg5 47. hxg5) 44... Qxc7 {[%emt 0:03:32]} (44... Qxb2+ $2 45. Bc2 Qxc2+ 46. Qxc2 Nxc2 47. c8=Q+ $18) 45. Bxd5 {[%emt 0:01:24]} Nxd5 {[%emt 0:07:18]} 46. Qf5+ {[%emt 0:00:12]} Qf7 {[%emt 0:01:51]} 47. Qc8+ {[%emt 0:00:07]} Kg7 {[%emt 0:00:07]} 48. Qxc5 {[%emt 0:00:08]} Qf3 {[%emt 0:01:41]} 49. a4 $2 {[%emt 0:10:38]} (49. Qc2) 49... Nf6 $2 {[%emt 0:04:18]} (49... Qd3 $19 {is more deadly.} 50. Qb5 Qc2+ 51. Kh3 Qf5+ 52. Kg2 Qe4+ 53. Kf2 Nf6 54. Qg5+ Kf7) 50. Qc7+ $17 {[%emt 0:02:11]} Kf8 {[%emt 0:01:55]} 51. Qc5+ $2 {[%emt 0:03:57]} (51. Qb8+ $1 $11 {and White stays safe.} Kf7 52. Qc7+ Ke6 53. Qb6+ Ke5 54. Qb8+ Kf5 55. Qc8+ Ke4 56. Qc6+ Nd5 57. Qc2+ Kd4 58. Qg2) 51... Ke8 $1 $19 {[%emt 0:01:12] Strongly threatening ...Qe2+.} 52. Qc8+ {[%emt 0:02:50] [#]} Ke7 $1 {[%emt 0:00:22]} 53. Qc5+ $1 {[%emt 0:00:57]} Ke6 {[%emt 0:00:17]} 54. Qb6+ $2 {[%emt 0:01:25][%mdl 8192] [#]} (54. Qc8+ $1 $15 Ke5 55. Qb8+ Kf5 56. Qc8+ Ke4 57. Qc6+ Nd5 58. Qc2+ Kd4 59. Qd2+ Ke5 60. Qh6) 54... Ke5 $1 {[%emt 0:02:24] ( -> ...Ng4+)} 55. Qb8+ {[%emt 0:00:46]} Ke6 $2 {[%emt 0:00:29]} (55... Kf5 $19 56. Qc8+ Ke4 57. Qc4+ Ke5 58. Qc7+ Kd4 59. Qf4+ Qxf4 60. gxf4 Ke4) 56. Qb6+ $15 {[%emt 0:02:31]} Kf7 {[%emt 0:00:07]} 57. Qc7+ {[%emt 0:00:23]} Kg6 {[%emt 0:00:20]} 58. Qc2+ {[%emt 0:00:26]} Ne4 {[%emt 0:00:13]} (58... Kh6 $5 {[%cal Rf6g4]} 59. Qc1+ Kg7 60. Qc7+ Kf8 61. Qc5+ Ke8 62. Qb5+ Kd8 63. Qb6+ Kc8 64. Qc5+ Kd7 65. Qa7+ Kd8 66. Qd4+ Ke8 67. Qe5+ Kd7 68. Qb5+ Kd8 69. Qa5+ Kd7 70. Qa7+ Ke6 71. Qb6+ $19) 59. Qc6+ {[%emt 0:01:59] The position is equal.} Kf5 {[%emt 0:03:13]} 60. Qd5+ {[%emt 0:00:33]} Kf6 {[%emt 0:00:11]} 61. Qc6+ {[%emt 0:00:41]} Ke5 {[%emt 0:01:08]} 62. Qb5+ $1 {[%emt 0:00:42]} Ke6 {[%emt 0:01:41]} 63. Qc6+ {[%emt 0:00:27]} Ke5 {[%emt 0:00:42]} 64. Qb5+ $1 {[%emt 0:00:11]} Ke6 {[%emt 0:00:11]} 65. Qc6+ {[%emt 0:00:09]} Kf7 {[%emt 0:00:12]} (65... Ke5 $5 66. Qb5+ $8 $11) 66. Qd7+ {[%emt 0:01:19]} Kg6 {[%emt 0:00:31]} 67. Qc6+ {[%emt 0:00:18]} Kg7 {[%emt 0:00:40]} 68. Qb7+ {[%emt 0:00:16]} Kf6 {[%emt 0:01:09]} (68... Kg6 $5 69. Qc6+ $8 $11) 69. Qc6+ {[%emt 0:00:11]} Ke5 {[%emt 0:00:03]} 70. Qb5+ $1 {[%emt 0:00:10] Weighted Error Value: White=0.67/Black=0.35} 1/2-1/2

[Event "European Women-ch 2023"]
[Site "Petrovac"]
[Date "2023.03.20"]
[Round "3.4"]
[White "Tsolakidou, Stavroula"]
[Black "Badelka, Olga"]
[Result "1/2-1/2"]
[ECO "C67"]
[WhiteElo "2358"]
[BlackElo "2428"]
[Annotator "TA"]
[PlyCount "69"]
[EventDate "2023.03.15"]
[EventType "swiss"]
[EventCountry "MNE"]
[SourceTitle "playchess.com"]
[Source "ChessBase"]
[SourceQuality "1"]
[TimeControl "40/5400+30:1800+30"]

{[%evp 9,69,13,4,0,0,-2,0,-9,13,5,10,13,11,3,12,4,5,12,6,8,5,8,18,13,20,20,16,15,14,18,20,24,29,0,0,11,25,0,0,-16,14,15,13,15,14,0,0,0,0,0,0,0,0,2,17,14,14,22,15,9,18,22]} 1. e4 {[%emt 0:00:04]} e5 {[%emt 0:00:06]} 2. Nf3 {[%emt 0:00:06]} Nc6 {[%emt 0:00:04]} 3. Bb5 {[%emt 0:00:06]} Nf6 {[%emt 0:00:06][%cal Bg8f6,Bf6e4,Be4d6][%mdl 32]} 4. O-O {[%emt 0:00:15][%cal Bh1f1,Bf1e1,Be1e4][%mdl 32]} Nxe4 {[%emt 0:00:05]} 5. Re1 {[%emt 0:00:16]} Nd6 {[%emt 0:00:04]} 6. a4 {[%emt 0:00:16] C67: Ruy Lopez: Berlin Defence: 4 0-0 Nxe4.} Be7 {[%emt 0:00:55]} 7. Nc3 {[%emt 0:00:17]} a6 {[%emt 0:02:47]} 8. Bf1 {[%emt 0:00:16]} e4 {[%emt 0:00:52][%mdl 64] [#] Deflection} 9. Nxe4 {[%emt 0:00:47]} Nxe4 {[%emt 0:00:04]} 10. Rxe4 {[%emt 0:00:06]} d5 {[%emt 0:00:02]} 11. Re1 {[%emt 0:00:18]} Bg4 {[%emt 0:00:45]} 12. h3 {[%emt 0:00:55]} Bh5 {[%emt 0:00:14]} 13. Be2 {[%emt 0:01:24]} O-O {[%emt 0:06:21]} 14. d4 {[%emt 0:00:14]} Bd6 {[%emt 0:06:38] [#]} 15. Ne5 $1 {[%emt 0:01:58]} Bxe2 {[%emt 0:00:55]} 16. Rxe2 {[%emt 0:00:05]} Ne7 {[%emt 0:13:06] [#]} 17. c3 $146 {[%emt 0:13:14]} ({Predecessor:} 17. Qd3 a5 18. Bd2 f6 19. Nf3 Qd7 20. b3 Ng6 21. Rae1 b6 22. h4 Rfe8 23. h5 {½-½ Vokhidov,S (2568)-Deac,B (2700) Speed Chess Q1 blitz 2022 (5)}) 17... c6 {[%emt 0:01:56]} 18. Bf4 {[%emt 0:05:29]} Re8 {[%emt 0:05:59]} 19. Qd2 {[%emt 0:02:42]} Bxe5 {[%emt 0:05:04]} 20. dxe5 {[%emt 0:03:06]} Qd7 {[%emt 0:02:35] Black is weak on the dark squares} 21. Rae1 {[%emt 0:08:17]} Ng6 {[%emt 0:03:39]} 22. Bh2 {[%emt 0:08:00]} c5 {[%emt 0:04:53][%cal Od5d4]} 23. f4 {[%emt 0:08:34][%cal Bf2f4,Bf4f5][%mdl 32]} Rad8 {[%emt 0:00:41] The position is equal.} ({But not} 23... Qxa4 24. Qxd5 Qc6 25. Qxc6 bxc6 26. f5 $16) 24. g4 {[%emt 0:06:10]} d4 {[%emt 0:03:44]} 25. f5 {[%emt 0:01:30] aiming for e6.} Nf8 {[%emt 0:00:05]} 26. cxd4 $1 {[%emt 0:18:39]} cxd4 {[%emt 0:02:51]} 27. a5 {[%emt 0:02:12]} Qb5 {[%emt 0:13:09]} 28. Rd1 {[%emt 0:05:03]} Rd5 {[%emt 0:00:54][%cal Oe8c8]} 29. Re4 {[%emt 0:00:12]} d3 {[%emt 0:06:26][%cal Of8d7]} 30. Re3 {[%emt 0:02:43]} Red8 {[%emt 0:00:16]} 31. Bg3 {[%emt 0:01:41]} h6 {[%emt 0:01:55]} 32. e6 {[%emt 0:05:49]} fxe6 {[%emt 0:00:06]} 33. fxe6 {[%emt 0:00:03] Strongly threatening e7.} Re8 {[%emt 0:05:51]} 34. e7 {[%emt 0:00:28][%cal Re3d3]} Ng6 {[%emt 0:00:52]} 35. Rxd3 {[%emt 0:00:20] An even fight not without its subleties.   Weighted Error Value: White=0.04 (flawless) /Black=0.04 (flawless)} 1/2-1/2

[Event "European Women-ch 2023"]
[Site "Petrovac"]
[Date "2023.03.20"]
[Round "3.4"]
[White "Kubicka, Anna"]
[Black "Maras, Marija Mia"]
[Result "1-0"]
[ECO "B22"]
[WhiteElo "2211"]
[BlackElo "1051"]
[Annotator "TA"]
[PlyCount "45"]
[EventDate "2023.03.15"]
[EventType "swiss"]
[EventCountry "MNE"]
[SourceTitle "playchess.com"]
[Source "ChessBase"]
[SourceQuality "1"]
[TimeControl "40/5400+30:1800+30"]

{[%evp 9,45,60,201,193,222,212,335,350,359,373,392,397,381,297,316,302,577,575,568,564,614,611,568,604,623,643,718,731,712,721,1323,1304,29994,29995,29995,29996,29998,29999]} 1. e4 {[%emt 0:00:06]} c5 {[%emt 0:00:03]} 2. Nf3 {[%emt 0:00:05]} Nc6 {[%emt 0:00:06]} 3. c3 {[%emt 0:00:18]} g6 {[%emt 0:01:18]} 4. d4 {[%emt 0:00:05]} cxd4 {[%emt 0:00:10]} 5. cxd4 {[%emt 0:00:07]} e6 {[%emt 0:00:53]} (5... d6 $14) 6. d5 $18 {[%emt 0:03:28] B22: Sicilian: 2 c3.} exd5 {[%emt 0:02:22]} 7. exd5 {[%emt 0:00:13][%cal Be4d5,Bd5d6][%mdl 32]} Qa5+ {[%emt 0:02:22]} (7... Qe7+ $142 8. Be2 Ne5) 8. Nc3 {[%emt 0:01:35] White has a decisive advantage.} Nce7 {[%emt 0:01:14] [#]} 9. d6 $146 {[%emt 0:06:49]} ({Predecessor:} 9. Qd4 Nf6 10. Qxf6 Rg8 11. d6 Nf5 12. Bc4 Nxd6 13. O-O Qd8 14. Re1+ Be7 15. Qxd6 Kf8 16. Bh6+ {1-0 Kabanov,N (2450)-Ahmed,H (1570) Wch Rapid St Petersburg 2018 (3)}) 9... Nf5 {[%emt 0:00:58] Prevents Qd4} 10. Qe2+ {[%emt 0:00:55]} Kd8 {[%emt 0:00:56]} 11. Ng5 {[%emt 0:07:56][%cal Rg5f7]} Nxd6 {[%emt 0:01:32]} 12. Bf4 {[%emt 0:00:14]} Bg7 $2 {[%emt 0:05:33]} (12... Be7 13. Qd2 h6 14. Bxd6 Qxg5) 13. O-O-O {[%emt 0:05:01][%cal Be1c1,Bc1d2,Bd2d1,Bd1c2][%mdl 32]} Bxc3 {[%emt 0:02:50]} 14. Rxd6 {[%emt 0:00:37]} Qxa2 {[%emt 0:08:06]} 15. bxc3 {[%emt 0:03:14][%mdl 64] [#] Discovered Attack} Qa1+ {[%emt 0:03:06]} 16. Kd2 {[%emt 0:00:31]} Qb2+ {[%emt 0:01:35]} 17. Kd1 {[%emt 0:06:18]} Qb3+ {[%emt 0:02:47]} 18. Qc2 {[%emt 0:00:31]} Qxc2+ {[%emt 0:01:20]} 19. Kxc2 {[%emt 0:00:05]} Ke7 {[%emt 0:00:39]} 20. Bc4 {[%emt 0:00:28]} Nf6 {[%emt 0:03:45]} 21. Re1+ {[%emt 0:00:16][%mdl 64] [#] Deflection. White mates.} Kf8 {[%emt 0:01:25]} 22. Rxf6 {[%emt 0:00:06]} b6 {[%emt 0:02:05]} 23. Rxf7+ {[%emt 0:00:07] Black did not feel at home in the position after the opening. A cool game by Kubicka.   Weighted Error Value: White=0.11 (very precise) /Black=0.75} 1-0